Cogmind - Beta 15 @@@ ROGUE MODE // 2025.08.09 @ 19:20:48 Player: Raix Result: Destroyed by Y-45 Defender with Heavy Assault Rifle Performance ------------- Evolutions (1) 500 Regions Visited (3) 600 Robots Destroyed (24) 120 Value Destroyed (549) 549 Prototype IDs (1) 20 Alien Tech Used (0) 0 Bonus (0) 0 TOTAL SCORE: 1789 Bonus ------- None Cogmind --------- Core Integrity 0/400 Matter 99/300 Energy 99/100 System Corruption 2% Temperature Cool (0) Movement Core (100) Ox1 Location -9/Storage Parts ------- > --- POWER (2) -------- (None) > --- PROPULSION (3) --- (None) > --- UTILITY (2) ------ Small Storage Unit Improved Targeting Computer > --- WEAPON (2) ------- Mini Grenade Launcher > --- INVENTORY (8) ---- Improved Aluminum Leg Small Matter Pod (0) Terrain Scan Processor Improved Targeting Computer Drone Bay (2/2) Drone Bay (2/2) Drone Bay (2/2) Beam Rifle Peak State ------------ > --- POWER ------------ Light Ion Engine Heavy Ion Engine > --- PROPULSION ------- Wheel Wheel Compact Wheel > --- UTILITY ---------- Small Storage Unit Light Armor Plating > --- WEAPON ----------- Mini Grenade Launcher Mini Grenade Launcher > --- INVENTORY -------- Light Ion Engine Terrain Scan Processor Improved Targeting Computer Improved Targeting Computer Improved Targeting Computer Drone Bay Drone Bay Drone Bay [Rating: 15] Favorites ----------- Power Light Ion Engine Engine Light Ion Engine Propulsion Wheel Wheel Wheel Utility Small Storage Unit Storage Small Storage Unit Processor Improved Targeting Computer Protection Light Armor Plating Weapon Mini Grenade Launcher Energy Gun Small Laser Energy Cannon Light EM Pulse Cannon Ballistic Gun Assault Rifle Launcher Mini Grenade Launcher Build | -11 -10 -9 -9 ------- Run | Yrd Mat Mat Sto Slots Evolved 2 | . . 2 . Power 1 | . . 1 . Propulsion 1 | . . 1 . Utility . | . . . . Weapon . | . . . . Parts Attached 23 | 7 . 10 6 Power 5 | 1 . 3 1 Engine 5 | 1 . 3 1 Core . | . . . . Reactor . | . . . . Propulsion 7 | 3 . 3 1 Treads . | . . . . Leg . | . . . . Wheel 7 | 3 . 3 1 Hover . | . . . . Flight . | . . . . Utility 4 | 1 . 1 2 Device . | . . . . Storage 1 | 1 . . . Processor 2 | . . . 2 Hackware . | . . . . Protection 1 | . . 1 . Artifact . | . . . . Weapon 7 | 2 . 3 2 Energy Gun 2 | 1 . 1 . Energy Cannon 1 | . . 1 . Ballistic Gun 2 | 1 . 1 . Ballistic Cannon . | . . . . Launcher 2 | . . . 2 Special Weapon . | . . . . Impact Weapon . | . . . . Slashing Weapon . | . . . . Piercing Weapon . | . . . . Special Melee Weapon . | . . . . Unidentified Prototypes 1 | . . . 1 Parts Lost 10 | . . 1 9 Power 3 | . . . 3 Propulsion 3 | . . . 3 Utility 2 | . . . 2 Weapon 2 | . . 1 1 Highest Loss Streak 4 | . . 1 4 To Critical Strikes . | . . . . Average Backups 6 | 3 8 7 8 Power . | 1 2 . . Propulsion 1 | 1 4 2 . Utility 2 | . . . 5 Weapon 1 | 1 2 3 1 Tool/Special . | . . . . Unused Backups 9 | . . . 9 Power . | . . . . Propulsion . | . . . . Utility 6 | . . . 6 Weapon 3 | . . . 3 Tool/Special . | . . . . Average Slot Usage (%) 80 | . 85 88 74 Engine 16 | . 14 22 15 Wheel 27 | . 28 32 23 Storage 11 | . 14 11 11 Protection 3 | . . 3 5 Energy Gun 5 | . 14 6 1 Energy Cannon 2 | . . 5 1 Ballistic Gun 4 | . 14 6 . Launcher 8 | . . . 15 Peak Build Rating 15 | 6 6 11 15 Average Rating 8 | 3 6 8 11 On Entrance 5 | . 6 6 11 Naked Turns . | . . . . Heaviest Build 22 | 13 13 22 21 Greatest Support 36 | 32 32 36 36 Greatest Overweight (x) 2 | . . . 2 Average Overweight (x) . | . . . . Largest Inventory Capacity 8 | 8 8 8 8 Average Capacity 7 | 5 8 8 8 Most Carried 8 | 8 8 8 8 Average Carried 6 | 4 8 7 7 Final Capacity 8 | 8 8 8 8 Final Carried 8 | 8 8 8 8 Class Distribution -------------------- 68% | Mutant 31% | Scavenger-Mutant Dominant Class ---------------- Mutant | -10/Materials Scavenger-Mutant | -9/Materials Mutant | -9/Storage Resources | -11 -10 -9 -9 ----------- Run | Yrd Mat Mat Sto Matter Collected 602 | 282 12 151 157 Remotely . | . . . . Salvage Created 513 | 143 43 199 128 Parts 42 | 9 5 14 14 Haulers Intercepted 1 | . . 1 . Recyclers Shooed 1 | . . 1 . Parts Field Recycled . | . . . . Retrieved Matter . | . . . . Parts Self-Destructed . | . . . . Prevented . | . . . . Kills | -11 -10 -9 -9 ------- Run | Yrd Mat Mat Sto Combat Hostiles Destroyed 13 | . 3 4 6 Guns 4 | . 3 1 . AOE 9 | . . 3 6 Classes Destroyed 9 | 3 1 4 1 Worker 4 | 2 . 1 1 Builder 2 | . . 1 1 Tunneler 2 | 2 . . . Hauler 1 | . . 1 . Recycler 1 | 1 . . . Mechanic 1 | . . . 1 Swarmer 3 | . 3 . . Grunt 6 | . . 3 3 Sentry 4 | . . 1 3 Best Kill Streak 6 | 2 3 6 6 Combat Bots Only 4 | . 3 4 2 Max Kills in Single Turn 4 | 1 1 4 3 Gunslinging . | . . . . Exploded 3 | . . 3 2 Melee . | . . . . Uniques/NPCs Destroyed . | . . . . Combat | -11 -10 -9 -9 -------- Run | Yrd Mat Mat Sto Hostile Shots Fired 111 | . 12 25 74 Missed 27 | . 4 7 16 Hits 84 | . 8 18 58 Projectile 84 | . 8 18 58 Critical Strikes 2 | . . . 2 Damage Taken 1412 | . 73 358 981 Core 433 | . 19 26 388 Absorbed by Shields . | . . . . Core Remaining (%) 96 | 100 92 . . Volleys Fired 62 | 21 4 20 17 Largest 2 | 2 2 2 2 Hottest 106 | 60 60 106 60 Shots Fired 90 | 25 8 28 29 Gun 59 | 25 8 26 . Cannon 2 | . . 2 . Launcher 29 | . . . 29 Special . | . . . . Kinetic 30 | 4 4 22 . Thermal 29 | 21 4 4 . Explosive 29 | . . . 29 Electromagnetic 2 | . . 2 . Robot Hit Streak 10 | 8 5 10 6 Robot Miss Streak 2 | 2 1 2 1 Penetration Max . | . . . . Secondary Targets 1 | . 1 . . Max Gunslinging Chain 1 | . 1 . . Shots Hit Robots 47 | 16 6 15 10 Core Hits 36 | 6 3 7 20 Critical Kills . | . . . . Critical Parts Destroyed . | . . . . Critical Strikes . | . . . . Melee Attacks . | . . . . Impact . | . . . . Slashing . | . . . . Piercing . | . . . . Sneak Attacks . | . . . . Combat Hostiles . | . . . . Follow-up Attacks . | . . . . Damage Inflicted 1653 | 174 67 616 796 Guns 419 | 174 67 178 . Cannons 23 | . . 23 . Explosions 1209 | . . 415 794 Melee . | . . . . Ramming 2 | . . . 2 Kinetic 201 | 10 36 155 . Thermal 633 | 164 31 438 . Explosive 794 | . . . 794 Electromagnetic 23 | . . 23 . Impact . | . . . . Slashing . | . . . . Piercing . | . . . . Highest Corruption 2 | . . . 2 Average Corruption 2 | . . . 2 Corruption Purged . | . . . . Corruption Blocked . | . . . . Overload Shots . | . . . . Overflow Damage 84 | . . 83 1 Projectiles . | . . . . Explosions 84 | . . 83 1 Melee . | . . . . Knockbacks . | . . . . Impact . | . . . . Kinetic . | . . . . Secondary . | . . . . Self-Inflicted Damage 250 | . . 124 126 Shots 8 | . . 2 6 Rammed 2 | . . . 2 Targets Rammed 2 | . . . 2 Kicked . | . . . . Crushed . | . . . . Highest Temperature 120 | . 12 120 72 Average Temperature 33 | . 9 32 36 Received Heat Transfer 477 | . 12 111 354 Siege Activations . | . . . . Martial Activations . | . . . . Shielding Activations . | . . . . Robots Disrupted . | . . . . Combat Hostiles . | . . . . Robots Corrupted . | . . . . Combat Hostiles . | . . . . Parts Fried . | . . . . Impact Corruptions . | . . . . Robots Melted . | . . . . Combat Hostiles . | . . . . Parts Melted . | . . . . Heat Transferred 762 | 375 75 312 . Parts Sabotaged . | . . . . Parts Stolen . | . . . . Parts Stripped . | . . . . Power Chain Reactions . | . . . . Alert | -11 -10 -9 -9 ------- Run | Yrd Mat Mat Sto Maximum Alert Level 1 | . . . 1 Low Security (%) 96 | 100 100 100 92 Level 1 3 | . . . 7 Level 2 . | . . . . Level 3 . | . . . . Level 4 . | . . . . Level 5 . | . . . . High Security . | . . . . Max Security . | . . . . Peak Influence 221 | 10 75 193 221 Initial 67 | . . 31 67 Average 77 | 1 17 113 124 Influence Increases 703 | 25 85 219 374 Destroy 0b10 Robot/C 260 | . 60 80 120 Destroy 0b10 Robot/NC 55 | 25 . 15 15 Destroy Leader 72 | . 10 22 40 Successful Hack 9 | . . . 9 Disable Machine 90 | . . 45 45 Destroy Structure 142 | . . 57 85 Partial Spotted 15 | . . . 15 Lose Combat Pursuer 60 | . 15 . 45 Influence Decreases 502 | 25 10 134 333 Entered New Map 137 | . . 44 93 Time Decay 265 | 25 10 80 150 Lost Part 100 | . . 10 90 Squads Dispatched . | . . . . Investigation . | . . . . Extermination . | . . . . Reinforcement . | . . . . Assault . | . . . . Garrison . | . . . . Intercept . | . . . . Searches Triggered . | . . . . Construction Impeded . | . . . . Haulers Reinforced . | . . . . Active Scanning Responses . | . . . . Cargo Convoy Interrupts . | . . . . Stealth | -11 -10 -9 -9 --------- Run | Yrd Mat Mat Sto Distress Signals 2 | . 1 . 1 Communications Jammed . | . . . . Distress Signals . | . . . . Times Spotted 25 | . 6 4 15 Peak Tracking Total 6 | . 6 3 6 Tactical Retreats 3 | . 1 . 2 Traps | -11 -10 -9 -9 ------- Run | Yrd Mat Mat Sto Traps Triggered 1 | . . . 1 Indirectly . | . . . . Trap Hack Attempts . | . . . . Triggered . | . . . . Disarmed . | . . . . Reprogrammed . | . . . . Reused . | . . . . Traps Extracted . | . . . . Installed . | . . . . Triggered . | . . . . Machines | -11 -10 -9 -9 ---------- Run | Yrd Mat Mat Sto Machines Disabled 6 | . . 3 3 Max in Single Turn 3 | . . 3 1 Machines Repaired . | . . . . Machines Dismantled . | . . . . Machines Sabotaged . | . . . . Overloaded Fab Kills . | . . . . Hacking | -11 -10 -9 -9 --------- Run | Yrd Mat Mat Sto Machines Accessed 2 | . . . 2 Terminals 2 | . . . 2 Fabricators . | . . . . Repair Stations . | . . . . Recycling Units . | . . . . Scanalyzers . | . . . . Garrison Access . | . . . . Total Hacks 2 | . . . 2 Successful 2 | . . . 2 Failed . | . . . . Catastrophic . | . . . . Database Lockouts . | . . . . Manual . | . . . . Terminals 2 | . . . 2 Fabricators . | . . . . Repair Stations . | . . . . Recycling Units . | . . . . Scanalyzers . | . . . . Garrison Access . | . . . . Terminal Hacks 2 | . . . 2 Open Door 2 | . . . 2 Fabricator Hacks . | . . . . Repair Station Hacks . | . . . . Recycling Unit Hacks . | . . . . Scanalyzer . | . . . . Garrison Access Hacks . | . . . . Unauthorized Hacks . | . . . . Terminals . | . . . . Fabricators . | . . . . Repair Stations . | . . . . Recycling Units . | . . . . Scanalyzers . | . . . . Garrison Access . | . . . . Data Cores Recovered . | . . . . Used . | . . . . Hacking Detections . | . . . . Full Trace Events . | . . . . Feedback Events . | . . . . Feedback Blocked . | . . . . Robot Schematics Acquired . | . . . . Robots Built . | . . . . Authchips . | . . . . Time . | . . . . Total Robot Build Rating . | . . . . Part Schematics Acquired . | . . . . Parts Built . | . . . . Authchips . | . . . . Time . | . . . . Total Part Build Rating . | . . . . Parts Repaired . | . . . . Time . | . . . . Parts Recycled . | . . . . Recycled Matter . | . . . . Retrieved Matter . | . . . . Retrieved Components . | . . . . Parts Scanalyzed . | . . . . Part Schematics Acquired . | . . . . Parts Damaged . | . . . . Bothacking | -11 -10 -9 -9 ------------ Run | Yrd Mat Mat Sto Used RIF Installer . | . . . . Robots Hacked . | . . . . Non-combat . | . . . . Combat . | . . . . Robot Hacks Applied . | . . . . Relay Couplers Released . | . . . . Fabnet Peak Effective % . | . . . . Robots Rewired . | . . . . Allies Hacked . | . . . . Hacks Repelled . | . . . . Allies | -11 -10 -9 -9 -------- Run | Yrd Mat Mat Sto Total Allies . | . . . . Largest Group . | . . . . Highest-Rated Group . | . . . . Highest-Rated Ally . | . . . . Total Orders . | . . . . Ally Attacks . | . . . . Total Damage . | . . . . Kills . | . . . . Allies Corrupted . | . . . . Allies Melted . | . . . . Intel | -11 -10 -9 -9 ------- Run | Yrd Mat Mat Sto Active Infowar (turns) . | . . . . Robot Analysis Total . | . . . . Derelict Logs Recovered . | . . . . Drone Launches . | . . . . Drone Recoveries . | . . . . Exploration | -11 -10 -9 -9 ------------- Run | Yrd Mat Mat Sto Turns Passed 779 | 178 115 179 307 Spaces Moved 619 | 135 104 120 260 Core 60 | 43 . . 17 Treads . | . . . . Legs . | . . . . Wheels 559 | 92 104 120 243 Hover . | . . . . Flight . | . . . . Fastest Speed 50 | 50 100 80 86 Average Speed 88 | 79 100 83 90 Slowest Speed 150 | 100 100 86 150 Overloaded Moves . | . . . . Propulsion Burnouts . | . . . . Robots Hopped . | . . . . Potential Cave-ins . | . . . . Cave-ins Triggered . | . . . . Exploration Rate (%) 17 | 7 28 11 25 Regions Visited 3 Branch Regions 1 Pre-discovered Areas . | . . . . Known Exits Taken . | . . . . Unknown Exits Taken 3 | 1 1 1 . Scrap Searched . | . . . . Spaces Dug . | . . . . Terrain Destroyed 174 | . . 64 110 Melee . | . . . . Projectile . | . . . . AOE 174 | . . 64 110 Terrain Rammed . | . . . . Walls Destroyed . | . . . . Machines Disabled . | . . . . Actions | -11 -10 -9 -9 --------- Run | Yrd Mat Mat Sto Total 765 | 180 107 172 306 Wait . | . . . . Move 616 | 134 103 119 260 Hop . | . . . . Pick Up 39 | 16 . 12 11 Fast Attach . | . . . . Attach 16 | 6 . 5 5 Detach . | . . . . Swap 12 | 1 . 8 3 Drop 18 | 2 . 8 8 Fire 62 | 21 4 20 17 Melee . | . . . . Ram 2 | . . . 2 Kick . | . . . . Crush . | . . . . Escape Stasis . | . . . . Rewire . | . . . . Trap . | . . . . Miscellaneous . | . . . . Route ------- -11/Scrapyard -10/Materials -9/Materials -9/Storage History --------- Turn | Location | Event 4 | -11/Scrapyard | Discovered new exit (range 13) 179 | -11/Scrapyard | Entered Materials 281 | -10/Materials | Discovered new exit (range 14) 294 | -10/Materials | Entered another Materials area 294 | -9/Materials | Evolved 2 slots: Power x1, Propulsion x1 299 | -9/Materials | Discovered new exit (range 17) 319 | -9/Materials | Build established: Mutant 473 | -9/Materials | Entered Storage 679 | -9/Storage | Lost 3 parts (1p1n1u) 705 | -9/Storage | Core integrity fell below 50% 753 | -9/Storage | Core integrity fell below 20% 780 | -9/Storage | Destroyed by Y-45 Defender with Heavy Assault Rifle Last Messages --------------- 00733_ Extracted 50 matter. 00736_ Imp. Targeting Computer destroyed. 00738_ Slammed into G-47 Trooper. 00738_ Critical hit (Burn: +37). 00740_ Hvy. Ion Engine destroyed. 00748_ Com. Wheel destroyed. 00749_ Component Storage disabled. 00754_ Y-45 Defender destroyed. 00756_ G-47 Trooper destroyed. 00760_ Acquired 17 matter. 00766_ Acquired 19 matter. 00768_ R-06 Scavenger collects Aluminum Leg. 00774_ Acquired Beam Rifle. 00777_ The unstable cave ceiling collapses. 00777_ Acquired Imp. Aluminum Leg. 00777_ Lgt. Ion Engine destroyed. 00779_ Dropped Imp. Aluminum Leg. 00779_ Acquired Imp. Aluminum Leg. 00780_ R-06 Scavenger collects Lgt. Treads. 00780_ R-06 Scavenger collects Imp. Aluminum Leg. Map ----- +----------------------------------------------------+ | ????????????????????????????????????????????????? | | ????????????????????????????????????????????????? | | ????????????????????????????????????????????????? | | ????????????????????????????????????????????????? | | ????????????????????????????????????????????????? | | ????????????????????????????????????????????????? | | ????????????????????????????????????????????????? | | ????????????????????????????????????????????????? | | ????????????????????????????????????????????????? | | ????????????????????????????????????????????????? | | ????????????????????????????????????????????????? | | ????????????????????????????????????????????????? | | ????????????????????????????????????????????????? | | ????????????????????????????????????????????????? | | ????????????????????????????????????????????????? | | ????????????????????????????????????????????????? | | ?????????????????????????###????????????????????? | | ????????????????????###### ##???????????????????? | | ????????????????????# #???????????????????? | | ????????????????????# """ #???????????????????? | | ????##+#????????????# """ ##??????????????????? | | ????# ????????????+ "" ###????????????????? | | ????# ????????????? ##???????????????? | | ????# #????????????## # #???????????????? | | ????# #????????????#[Y [== ###?????????????? | | ????# #????????????# @ [ """#?????????????? | | ????# #????????????# r r R"#?????????????? | | ????# #????????????# """#?????????????? | | ????# #????????????# " ####?????????????? | | ????# #????????????# " " #????????????????? | | ???## ##???#####???# #????????????????? | | ???# #???# # ###?# #????????????????? | | ???# ################ ########## ?????????? | | ???# Y Y +??????? | | ???# [ ###?????????????? | | ???# != #???????????????? | | ???## ########+######+ # ######???????????????? | | ??## ## # ###????????????????????? | | ??# # T#?????????????????????? | | ??# ## ###????????????????????? | | ?## # #????????????????????? | | ?# # # " #! !!#????????????????????? | | ?## # " #!!! !!#????????????????????? | | ?# # " #!!! !!#????????????????????? | | ?# ## #########????????????????????? | | ?## # "Y"######????????????????????????????? | | ??# # ## """#?????????????????????????????????? | | ??# # #####????????????????????????????????? | | ??# # !!!!#????????????????????????????????? | | ??### |][ #????????????????????????????????? | +----------------------------------------------------+ Best States ------------- Heat Dissipation 28 Energy Generation 19 Energy Capacity 305 Matter Stores 300 Matter Capacity 300 Sight Range 16 Terrain Scan Density 10 Armor Coverage 150 Evasion (%) 50 Targeting Accuracy 6 Item Schematics ----------------- None Robot Schematics ------------------ None Fabricated ------------ Nothing Repaired ---------- Nothing Alien Tech Used ----------------- None Achievements -------------- None Challenges ------------ None Game ------ Seed ColdSingularityRailcannon Manual? 0 Play Time 00:15:08 Cumulative 20.2 hours Start 2025.07.10 @ 21:48:39 End 2025.08.09 @ 19:20:48 Sessions 2 Manual Loads 0 Difficulty Rogue Special Mode None Game No. 28 Rogue 28 Adventurer 0 Explorer 0 Win Type - Total 0 Types 0/0/0/0/0/0/0/0/0/0 Lore% 12 Gallery% 23 Achievement% 25 Wizard Run 0 Options --------- Layout 2 ASCII 0 Keyboard 0 Movement Numpad Keybinds 0 Fullscreen 1 Font 32/SmallcapsGlow Map View 77x44 Zoom Use 0% Tactical HUD 1 Map Filters NONE Filters NONE Steam 1 RUN: 6f3a44b2-a9fb-4de2-8ee5-f26336e66895